fUSD/lending_fUSD_20240426
["ID","MTS","AMOUNT","RATE_DAILY","PERIOD"]
[323595611,1714101044078,-500.0,0.00010958,2]
[323595612,1714101044087,-4686.32,0.00010958,2]
[323595613,1714101044097,-500.0,0.00010958,2]
[323595614,1714101044106,-1217.41,0.00010958,2]
[323595615,1714101044115,-500.0,0.00010958,2]
[323595616,1714101044125,-500.0,0.00010958,2]
[323595617,1714101044135,-500.0,0.00010958,2]
[323595618,1714101044144,-500.0,0.00010958,2]
[323595619,1714101044155,-500.0,0.00010958,2]
[323595620,1714101044164,-500.0,0.00010958,2]
[323595621,1714101044173,-500.0,0.00010958,2]
[323595622,1714101044184,-528.85,0.00010958,2]
[323595623,1714101044194,-666.49,0.00010958,2]
[323595624,1714101044204,-894.65,0.00010958,2]
[323595625,1714101044215,-500.0,0.00010958,2]
[323595626,1714101044225,-500.0,0.00010958,2]
[323595627,1714101044236,-516.08,0.00010958,2]
[323595628,1714101044246,-500.0,0.00010958,2]
[323595629,1714101044257,-500.0,0.00010958,2]
[323595630,1714101044267,-500.0,0.00010958,2]
[323595631,1714101044276,-1043.24,0.00010958,2]
[323595632,1714101044286,-1377.96,0.00010958,2]
[323595633,1714101044295,-500.0,0.00010958,2]
[323595634,1714101044304,-503.14098486,0.00010958,2]
[323595635,1714101044313,-500.0,0.00010958,2]
[323595636,1714101044324,-859.71,0.00010958,2]
[323595637,1714101044333,-500.0,0.00010958,2]
[323595638,1714101044343,-500.0,0.00010958,2]
[323595639,1714101044353,-731.1,0.00010958,2]
[323595640,1714101044365,-500.0,0.00010958,2]
[323595641,1714101044375,-500.0,0.00010958,2]
[323595642,1714101044384,-1100.89,0.00010958,2]
[323595643,1714101044394,-537.85,0.00010958,2]
[323595644,1714101044403,-500.0,0.00010958,2]
[323595645,1714101044415,-500.0,0.00010958,2]
[323595646,1714101044424,-500.0,0.00010958,2]
[323595647,1714101044433,-500.0,0.00010958,2]
[323595648,1714101044443,-883.47,0.00010958,2]
[323595649,1714101044453,-1248.83,0.00010958,2]
[323595650,1714101044462,-500.0,0.00010958,2]
[323595651,1714101044471,-500.0,0.00010958,2]
[323595652,1714101044481,-500.0,0.00010958,2]
[323595653,1714101044490,-6484.7,0.00010958,2]
[323595654,1714101044499,-500.0,0.00010958,2]
[323595655,1714101044508,-500.0,0.00010958,2]
[323595656,1714101044518,-500.0,0.00010958,2]
[323595657,1714101044527,-500.0,0.00010958,2]
[323595658,1714101044538,-2034.2,0.00010958,2]
[323595659,1714101044549,-500.0,0.00010958,2]
[323595660,1714101044558,-500.0,0.00010958,2]
[323595661,1714101044567,-500.0,0.00010958,2]
[323595662,1714101044576,-500.0,0.00010958,2]
[323595663,1714101044586,-3417.97,0.00010958,2]
[323595664,1714101044595,-500.0,0.00010958,2]
[323595665,1714101044606,-934.31,0.00010958,2]
[323595666,1714101044616,-500.0,0.00010958,2]
[323595667,1714101044625,-500.0,0.00010958,2]
[323595668,1714101044635,-504.28110587,0.00010958,2]
[323595669,1714101044646,-1618.56,0.00010958,2]
[323595670,1714101044658,-500.0,0.00010958,2]
[323595671,1714101044668,-500.0,0.00010958,2]
[323595672,1714101044677,-2563.26,0.00010958,2]
[323595673,1714101044687,-500.0,0.00010958,2]
[323595674,1714101044697,-537.56,0.00010958,2]
[323595675,1714101044707,-947.56,0.00010958,2]
[323595676,1714101044717,-500.0,0.00010958,2]
[323595677,1714101044729,-876.74,0.00010958,2]
[323595678,1714101044739,-500.0,0.00010958,2]
[323595679,1714101044749,-3228.01,0.00010958,2]
[323595680,1714101044759,-500.0,0.00010958,2]
[323595681,1714101044769,-500.0,0.00010958,2]
[323595682,1714101044778,-500.0,0.00010958,2]
[323595683,1714101044788,-624.85,0.00010958,2]
[323595684,1714101044799,-1203.95,0.00010958,2]
[323595685,1714101044810,-579.96529845,0.00010958,2]
[323595686,1714101044819,-2525.76,0.00010958,2]
[323595687,1714101044828,-500.0,0.00010958,2]
[323595688,1714101044837,-517.21240557,0.00010958,2]
[323595689,1714101044847,-585.54661704,0.00010958,2]
[323595690,1714101044857,-500.0,0.00010958,2]
[323595691,1714101044866,-500.0,0.00010958,2]
[323595692,1714101044875,-1366.38,0.00010958,2]
[323595693,1714101044885,-4023.49,0.00010958,2]
[323595694,1714101044894,-1704.59,0.00010958,2]
[323595695,1714101044903,-500.0,0.00010958,2]
[323595696,1714101044912,-651.42,0.00010958,2]
[323595697,1714101044922,-500.0,0.00010958,2]
[323595698,1714101044931,-656.14,0.00010958,2]
[323595699,1714101044940,-500.0,0.00010958,2]
[323595700,1714101044949,-2567.61,0.00010958,2]
[323595701,1714101044958,-565.21,0.00010958,2]
[323595702,1714101044968,-500.0,0.00010958,2]
[323595703,1714101044977,-500.0,0.00010958,2]
[323595704,1714101044986,-519.42019807,0.00010958,2]
[323595705,1714101044995,-4723.15,0.00010958,2]
[323595706,1714101045005,-500.0,0.00010958,2]
[323595707,1714101045014,-768.71,0.00010958,2]
[323595708,1714101045023,-500.0,0.00010958,2]
[323595709,1714101045032,-773.01,0.00010958,2]
[323595710,1714101045042,-500.0,0.00010958,2]
[323595711,1714101045051,-400.0,0.00010958,2]
[323595712,1714101045060,-500.0,0.00010958,2]
[323595713,1714101045069,-500.0,0.00010958,2]
[323595714,1714101045078,-500.0,0.00010958,2]
[323595715,1714101045087,-500.0,0.00010958,2]
[323595716,1714101045097,-730.1,0.00010958,2]
[323595717,1714101045106,-500.0,0.00010958,2]
[323595718,1714101045116,-500.0,0.00010958,2]
[323595719,1714101045125,-500.0,0.00010958,2]
[323595720,1714101045134,-500.0,0.00010958,2]
[323595721,1714101045143,-500.0,0.00010958,2]
[323595722,1714101045153,-500.0,0.00010958,2]
[323595723,1714101045163,-804.58,0.00010958,2]
[323595724,1714101045171,-2599.73,0.00010958,2]
[323595725,1714101045181,-2403.09,0.00010958,2]
[323595726,1714101045191,-500.0,0.00010958,2]
[323595727,1714101045200,-211.75,0.00010958,2]
[323595728,1714101045209,-500.0,0.00010958,2]
[323595729,1714101045218,-500.0,0.00010958,2]
[323595730,1714101045228,-987.48,0.00010958,2]
[323595731,1714101045237,-685.7,0.00010958,2]
[323595732,1714101045246,-1065.8,0.00010958,2]
[323595733,1714101045256,-500.0,0.00010958,2]
[323595734,1714101045265,-500.0,0.00010958,2]
[323595735,1714101045274,-1013.91,0.00010958,2]
[323595736,1714101045283,-500.0,0.00010958,2]
[323595737,1714101045293,-1241.06,0.00010958,2]
[323595738,1714101045302,-500.0,0.00010958,2]
[323595739,1714101045311,-500.0,0.00010958,2]
[323595740,1714101045320,-300.4846597,0.00010958,2]
[323595741,1714101045329,-3064.47,0.00010958,2]
[323595742,1714101045338,-500.0,0.00010958,2]
[323595743,1714101045347,-12059.81,0.00010958,2]
[323595744,1714101045357,-702.14,0.00010958,2]
[323595745,1714101045366,-1078.25,0.00010958,2]
[323595746,1714101045377,-500.0,0.00010958,2]
[323595747,1714101045386,-500.0,0.00010958,2]
[323595748,1714101045398,-500.0,0.00010958,2]
[323595749,1714101045407,-500.0,0.00010958,2]
[323595750,1714101045418,-500.0,0.00010958,2]
[323595751,1714101045428,-500.0,0.00010958,2]
[323595752,1714101045438,-500.0,0.00010958,2]
[323595753,1714101045447,-500.0,0.00010958,2]
[323595754,1714101045457,-500.0,0.00010958,2]
[323595755,1714101045466,-500.0,0.00010958,2]
[323595756,1714101045475,-500.0,0.00010958,2]
[323595757,1714101045485,-500.0,0.00010958,2]
[323595758,1714101045496,-825.28,0.00010958,2]
[323595759,1714101045505,-614.68,0.00010958,2]
[323595760,1714101045515,-500.0,0.00010958,2]
[323595761,1714101045526,-500.0,0.00010958,2]
[323595762,1714101045535,-503.59951287,0.00010958,2]
[323595763,1714101045547,-500.0,0.00010958,2]
[323595764,1714101045558,-500.0,0.00010958,2]
[323595765,1714101045567,-1058.38,0.00010958,2]
[323595766,1714101045577,-500.0,0.00010958,2]
[323595767,1714101045588,-500.0,0.00010958,2]
[323595768,1714101045598,-500.0,0.00010958,2]
[323595769,1714101045609,-500.0,0.00010958,2]
[323595770,1714101045621,-500.0,0.00010958,2]
[323595771,1714101045631,-541.88,0.00010958,2]
[323595772,1714101045642,-500.0,0.00010958,2]
[323595773,1714101045652,-500.0,0.00010958,2]
[323595774,1714101045662,-500.0,0.00010958,2]
[323595775,1714101045672,-521.1887586,0.00010958,2]
[323595776,1714101045683,-500.0,0.00010958,2]
[323595777,1714101045693,-500.0,0.00010958,2]
[323595778,1714101045764,-5347.85,0.00010958,2]
[323595779,1714101045773,-850.4,0.00010959,3]
[323595780,1714101045782,-499.99,0.00010959,2]
[323595781,1714101045792,-465.9,0.00010959,2]
[323595782,1714101045804,-150.0,0.00010959,2]
[323595783,1714101045813,-1943.8,0.0001096,2]
[323595784,1714101045822,-749.70504623,0.00011,2]
[323595785,1714101045832,-200.0,0.00011,2]
[323595786,1714101045842,-155.0,0.00011,2]
[323595787,1714101045852,-162.8,0.00011,2]
[323595788,1714101045862,-204.36851064,0.00011132,2]
[323595789,1714101045871,-236.71908227,0.00011132,2]
[323595790,1714101045882,-290.53942449,0.00011222,2]
[323595791,1714101045891,-591.02,0.00011232,2]
[323595792,1714101045900,-500.0,0.00011232,2]
[323595793,1714101045909,-324.10881725,0.00011232,2]
[323595794,1714101045918,-500.0,0.00011232,2]
[323595795,1714101045927,-500.0,0.00011232,2]
[323595796,1714101045936,-500.0,0.00011232,2]
[323595797,1714101045945,-500.0,0.00011232,2]
[323595798,1714101045954,-500.0,0.00011232,2]
[323595799,1714101045964,-500.0,0.00011232,2]
[323595800,1714101045973,-181.7911259,0.00011232,2]
[323595801,1714101045982,-500.0,0.00011232,2]
[323595802,1714101045991,-712.16,0.00011232,2]
[323595803,1714101046000,-500.0,0.00011232,2]
[323595804,1714101046009,-521.67031906,0.00011232,2]
[323595805,1714101046019,-500.0,0.00011232,2]
[323595806,1714101046028,-658.06,0.00011232,2]
[323595807,1714101046037,-709.23,0.00011232,2]
[323595808,1714101046047,-500.0,0.00011232,2]
[323595809,1714101046056,-731.38,0.00011232,2]
[323595810,1714101046065,-500.0,0.00011232,2]
[323595811,1714101046075,-500.0,0.00011232,2]
[323595812,1714101046084,-516.70159243,0.00011232,2]
[323595813,1714101046093,-500.0,0.00011232,2]
[323595814,1714101046102,-573.96,0.00011232,2]
[323595815,1714101046111,-500.0,0.00011232,2]
[323595816,1714101046120,-500.0,0.00011232,2]
[323595817,1714101046130,-500.0,0.00011232,2]
[323595818,1714101046140,-500.0,0.00011232,2]
[323595819,1714101046149,-500.0,0.00011232,2]
[323595820,1714101046158,-500.0,0.00011232,2]
[323595821,1714101046167,-500.0,0.00011232,2]
[323595822,1714101046176,-500.0,0.00011232,2]
[323595823,1714101046185,-689.55,0.00011232,2]
[323595824,1714101046195,-208.1842513,0.00011232,2]
[323595825,1714101046204,-500.0,0.00011232,2]
[323595826,1714101046213,-500.0,0.00011232,2]
[323595827,1714101046222,-500.0,0.00011232,2]
[323595828,1714101046232,-660.44,0.00011232,2]
[323595829,1714101046241,-500.0,0.00011232,2]
[323595830,1714101046250,-500.0,0.00011232,2]
[323595831,1714101046260,-500.0,0.00011232,2]
[323595832,1714101046269,-500.0,0.00011232,2]
[323595833,1714101046278,-500.0,0.00011232,2]
[323595834,1714101046287,-500.0,0.00011232,2]
[323595835,1714101046297,-500.0,0.00011232,2]
[323595836,1714101046306,-500.0,0.00011232,2]
[323595837,1714101046315,-500.0,0.00011232,2]
[323595838,1714101046324,-500.0,0.00011232,2]
[323595839,1714101046333,-500.0,0.00011232,2]
[323595840,1714101046342,-500.0,0.00011232,2]
[323595841,1714101046351,-500.0,0.00011232,2]
[323595842,1714101046360,-508.1575224,0.00011232,2]
[323595843,1714101046369,-500.0,0.00011232,2]
[323595844,1714101046379,-500.0,0.00011232,2]
[323595845,1714101046388,-500.0,0.00011232,2]
[323595846,1714101046397,-500.0,0.00011232,2]
[323595847,1714101046406,-585.33316979,0.00011232,2]
[323595848,1714101046415,-846.67,0.00011232,2]
[323595849,1714101046424,-500.0,0.00011232,2]
[323595850,1714101046434,-548.25,0.00011232,2]
[323595851,1714101046444,-500.0,0.00011232,2]
[323595852,1714101046453,-500.0,0.00011232,2]
[323595853,1714101046462,-500.0,0.00011232,2]
[323595854,1714101046471,-500.0,0.00011232,2]
[323595855,1714101046480,-500.0,0.00011232,2]
[323595856,1714101046489,-500.0,0.00011232,2]
[323595857,1714101046498,-502.32,0.00011232,2]
[323595858,1714101046507,-509.25697785,0.00011232,2]
[323595859,1714101046516,-500.0,0.00011232,2]
[323595860,1714101046525,-500.0,0.00011232,2]
[323595861,1714101046534,-617.87993821,0.00011232,2]
[323595862,1714101046544,-500.0,0.00011232,2]
[323595863,1714101046553,-500.0,0.00011232,2]
[323595864,1714101046562,-184.51,0.00011232,2]
[323595865,1714101046571,-500.0,0.00011232,2]
[323595866,1714101046580,-840.3,0.00011232,2]
[323595867,1714101046589,-500.0,0.00011232,2]
[323595868,1714101046598,-500.0,0.00011232,2]
[323595869,1714101046607,-500.0,0.00011232,2]
[323595870,1714101046616,-500.0,0.00011232,2]
[323595871,1714101046626,-500.0,0.00011232,2]
[323595872,1714101046634,-500.0,0.00011232,2]
[323595873,1714101046643,-500.0,0.00011232,2]
[323595874,1714101046653,-549.34,0.00011232,2]
[323595875,1714101046662,-500.0,0.00011232,2]
[323595876,1714101046672,-500.0,0.00011232,2]
[323595877,1714101046682,-500.0,0.00011232,2]
[323595878,1714101046691,-500.0,0.00011232,2]
[323595879,1714101046700,-500.0,0.00011232,2]
[323595880,1714101046709,-548.99359484,0.00011232,2]
[323595881,1714101046718,-500.0,0.00011232,2]
[323595882,1714101046727,-500.0,0.00011232,2]
[323595883,1714101046736,-500.0,0.00011232,2]
[323595885,1714101046745,-500.0,0.00011232,2]
[323595887,1714101046754,-500.0,0.00011232,2]
[323595888,1714101046763,-500.0,0.00011232,2]
[323595889,1714101046772,-500.0,0.00011232,2]
[323595890,1714101046782,-500.0,0.00011232,2]
[323595891,1714101046793,-500.0,0.00011232,2]
[323595892,1714101046808,-500.0,0.00011232,2]
[323595893,1714101046817,-500.0,0.00011232,2]
[323595894,1714101046826,-387.46010846,0.00011232,2]
[323595895,1714101046835,-655.82,0.00011232,2]
[323595896,1714101046845,-150.0,0.00011232,2]
[323595897,1714101046854,-500.0,0.00011232,2]
[323595898,1714101046864,-500.0,0.00011232,2]
[323595899,1714101046874,-151.15720632,0.00011232,2]
[323595900,1714101046884,-500.0,0.00011232,2]
[323595901,1714101046893,-500.0,0.00011232,2]
[323595902,1714101046902,-500.0,0.00011232,2]
[323595903,1714101046911,-500.0,0.00011232,2]
[323595904,1714101046921,-500.0,0.00011232,2]
[323595905,1714101046930,-500.0,0.00011232,2]
[323595906,1714101046939,-530.38,0.00011232,2]
[323595907,1714101046949,-500.0,0.00011232,2]
[323595908,1714101046958,-500.0,0.00011232,2]
[323595909,1714101046968,-500.0,0.00011232,2]
[323595910,1714101046978,-500.0,0.00011232,2]
[323595911,1714101046988,-500.0,0.00011232,2]
[323595912,1714101046997,-372.20006193,0.00011232,2]
[323595913,1714101047007,-500.0,0.00011232,2]
[323595914,1714101047016,-500.0,0.00011232,2]
[323595915,1714101047026,-500.0,0.00011232,2]
[323595916,1714101047036,-500.0,0.00011232,2]
[323595917,1714101047047,-500.0,0.00011232,2]
[323595918,1714101047056,-500.0,0.00011232,2]
[323595919,1714101047065,-944.49,0.00011232,2]
[323595920,1714101047074,-500.0,0.00011232,2]
[323595921,1714101047084,-500.0,0.00011232,2]
[323595922,1714101047093,-500.0,0.00011232,2]
[323595923,1714101047102,-500.0,0.00011232,2]
[323595924,1714101047111,-500.0,0.00011232,2]
[323595925,1714101047121,-500.0,0.00011232,2]
[323595926,1714101047130,-500.0,0.00011232,2]
[323595927,1714101047139,-500.0,0.00011232,2]
[323595928,1714101047148,-500.0,0.00011232,2]
[323595929,1714101047157,-605.08,0.00011232,2]
[323595930,1714101047166,-500.0,0.00011232,2]
[323595931,1714101047176,-449.61957277,0.00011232,2]
[323595932,1714101047186,-500.0,0.00011232,2]
[323595933,1714101047195,-632.24,0.00011232,2]
[323595934,1714101047204,-500.0,0.00011232,2]
[323595935,1714101047213,-616.17,0.00011232,2]
[323595936,1714101047222,-500.0,0.00011232,2]
[323595937,1714101047231,-500.0,0.00011232,2]
[323595938,1714101047240,-500.0,0.00011232,2]
[323595939,1714101047249,-500.0,0.00011232,2]
[323595940,1714101047258,-500.0,0.00011232,2]
[323595941,1714101047270,-500.0,0.00011232,2]
[323595942,1714101047279,-500.0,0.00011232,2]
[323595943,1714101047290,-500.0,0.00011232,2]
[323595944,1714101047300,-296.42,0.00011232,2]
[323595945,1714101047309,-500.0,0.00011232,2]
[323595946,1714101047318,-500.0,0.00011232,2]
[323595947,1714101047327,-909.16,0.00011232,2]
[323595948,1714101047336,-500.0,0.00011232,2]
[323595949,1714101047345,-500.0,0.00011232,2]
[323595951,1714101047354,-500.0,0.00011232,2]
[323595952,1714101047363,-500.0,0.00011232,2]
[323595953,1714101047372,-500.0,0.00011232,2]
[323595954,1714101047381,-500.0,0.00011232,2]
[323595955,1714101047390,-500.0,0.00011232,2]
[323595956,1714101047399,-500.0,0.00011232,2]
[323595957,1714101047411,-824.8,0.00011232,2]
[323595958,1714101047422,-500.0,0.00011232,2]
[323595959,1714101047431,-500.0,0.00011232,2]
[323595960,1714101047440,-500.0,0.00011232,2]
[323595961,1714101047450,-320.10890372,0.00011232,2]
[323595962,1714101047460,-500.0,0.00011232,2]
[323595963,1714101047469,-500.0,0.00011232,2]
[323595964,1714101047478,-574.46,0.00011232,2]
[323595965,1714101047488,-500.0,0.00011232,2]
[323595966,1714101047496,-500.0,0.00011232,2]
[323595967,1714101047505,-500.0,0.00011232,2]
[323595968,1714101047514,-500.0,0.00011232,2]
[323595969,1714101047523,-725.46,0.00011232,2]
[323595970,1714101047533,-500.0,0.00011232,2]
[323595971,1714101047543,-500.0,0.00011232,2]
[323595972,1714101047552,-500.0,0.00011232,2]
[323595973,1714101047561,-500.0,0.00011232,2]
[323595974,1714101047570,-500.0,0.00011232,2]
[323595975,1714101047579,-500.0,0.00011232,2]
[323595976,1714101047588,-500.0,0.00011232,2]
[323595977,1714101047597,-500.0,0.00011232,2]
[323595978,1714101047607,-500.0,0.00011232,2]
[323595979,1714101047616,-500.0,0.00011232,2]
[323595980,1714101047625,-511.97460256,0.00011232,2]
[323595981,1714101047634,-500.0,0.00011232,2]
[323595982,1714101047643,-500.0,0.00011232,2]
[323595983,1714101047653,-500.0,0.00011232,2]
[323595984,1714101047662,-500.0,0.00011232,2]
[323595985,1714101047671,-500.0,0.00011232,2]
[323595986,1714101047681,-500.0,0.00011232,2]
[323595987,1714101047691,-704.22,0.00011232,2]
[323595988,1714101047700,-500.0,0.00011232,2]
[323595989,1714101047710,-529.75400827,0.00011232,2]
[323595990,1714101047719,-199.17466621,0.00011232,2]
[323595991,1714101047728,-500.0,0.00011232,2]
[323595992,1714101047738,-719.57,0.00011232,2]
[323595993,1714101047747,-698.03,0.00011232,2]
[323595994,1714101047756,-458.84371867,0.00011232,2]
[323595995,1714101047765,-500.0,0.00011232,2]
[323595996,1714101047774,-500.0,0.00011232,2]
[323595997,1714101047783,-500.0,0.00011232,2]
[323595998,1714101047793,-527.35,0.00011232,2]
[323595999,1714101047806,-500.0,0.00011232,2]
[323596000,1714101047815,-500.0,0.00011232,2]
[323596001,1714101047828,-500.0,0.00011232,2]
[323596002,1714101047838,-391.71852207,0.00011232,2]
[323596003,1714101047847,-500.0,0.00011232,2]
[323596004,1714101047857,-500.0,0.00011232,2]
[323596005,1714101047866,-649.59571606,0.00011232,2]
[323596006,1714101047876,-500.0,0.00011232,2]
[323596007,1714101047886,-500.0,0.00011232,2]
[323596008,1714101047895,-500.0,0.00011232,2]
[323596009,1714101047906,-751.29,0.00011232,2]
[323596010,1714101047915,-500.0,0.00011232,2]
[323596011,1714101047924,-500.0,0.00011232,2]
[323596012,1714101047934,-500.0,0.00011232,2]
[323596013,1714101047943,-500.0,0.00011232,2]
[323596014,1714101047952,-500.0,0.00011232,2]
[323596015,1714101047961,-500.0,0.00011232,2]
[323596016,1714101047970,-500.0,0.00011232,2]
[323596017,1714101047980,-500.0,0.00011232,2]
[323596018,1714101047989,-500.0,0.00011232,2]
[323596019,1714101047998,-500.0,0.00011232,2]
[323596020,1714101048007,-254.25121967,0.00011232,2]
[323596021,1714101048016,-500.0,0.00011232,2]
[323596022,1714101048025,-500.0,0.00011232,2]
[323596023,1714101048035,-500.0,0.00011232,2]
[323596024,1714101048045,-500.0,0.00011232,2]
[323596025,1714101048055,-500.0,0.00011232,2]
[323596026,1714101048065,-500.0,0.00011232,2]
[323596027,1714101048075,-384.14917859,0.00011232,2]
[323596028,1714101048084,-500.0,0.00011232,2]
[323596029,1714101048093,-500.0,0.00011232,2]
[323596030,1714101048102,-500.0,0.00011232,2]
[323596031,1714101048112,-500.0,0.00011232,2]
[323596032,1714101048121,-500.0,0.00011232,2]
[323596033,1714101048131,-500.0,0.00011232,2]
[323596034,1714101048140,-500.0,0.00011232,2]
[323596035,1714101048149,-500.0,0.00011232,2]
[323596036,1714101048159,-500.0,0.00011232,2]
[323596037,1714101048168,-705.92,0.00011232,2]
[323596038,1714101048177,-500.0,0.00011232,2]
[323596039,1714101048186,-500.0,0.00011232,2]
[323596040,1714101048195,-622.12865859,0.00011232,2]
[323596041,1714101048205,-500.0,0.00011232,2]
[323596042,1714101048214,-500.0,0.00011232,2]
[323596043,1714101048223,-500.0,0.00011232,2]
[323596044,1714101048231,-500.0,0.00011232,2]
[323596045,1714101048240,-500.0,0.00011232,2]
[323596046,1714101048250,-586.56,0.00011232,2]
[323596047,1714101048258,-500.0,0.00011232,2]
[323596048,1714101048267,-500.0,0.00011232,2]
[323596049,1714101048277,-658.37,0.00011232,2]
[323596050,1714101048286,-500.0,0.00011232,2]
[323596051,1714101048296,-500.0,0.00011232,2]
[323596052,1714101048306,-500.0,0.00011232,2]
[323596053,1714101048315,-342.95880143,0.00011232,2]
[323596054,1714101048324,-500.0,0.00011232,2]
[323596055,1714101048334,-500.0,0.00011232,2]
[323596056,1714101048343,-531.55,0.00011232,2]
[323596057,1714101048352,-730.41,0.00011232,2]
[323596058,1714101048361,-460.58033119,0.00011232,2]
[323596059,1714101048369,-500.0,0.00011232,2]
[323596060,1714101048378,-500.0,0.00011232,2]
[323596061,1714101048387,-500.0,0.00011232,2]
[323596062,1714101048396,-500.0,0.00011232,2]
[323596063,1714101048405,-500.0,0.00011232,2]
[323596064,1714101048414,-500.0,0.00011232,2]
[323596065,1714101048423,-771.28,0.00011232,2]
[323596066,1714101048433,-512.43,0.00011232,2]
[323596067,1714101048442,-932.7,0.00011232,2]
[323596068,1714101048451,-516.43,0.00011232,2]
[323596069,1714101048460,-500.0,0.00011232,2]
[323596070,1714101048469,-500.0,0.00011232,2]
[323596071,1714101048478,-500.0,0.00011232,2]
[323596072,1714101048488,-911.55,0.00011232,2]
[323596073,1714101048497,-796.84,0.00011232,2]
[323596074,1714101048506,-549.72,0.00011232,2]
[323596075,1714101048515,-500.0,0.00011232,2]
[323596076,1714101048524,-500.0,0.00011232,2]
[323596077,1714101048533,-1129.75,0.00011232,2]
[323596078,1714101048542,-500.0,0.00011232,2]
[323596079,1714101048552,-500.0,0.00011232,2]
[323596080,1714101048561,-648.0,0.00011232,2]
[323596081,1714101048570,-500.0,0.00011232,2]
[323596082,1714101048579,-500.0,0.00011232,2]
[323596083,1714101048588,-500.0,0.00011232,2]
[323596084,1714101048596,-529.33432033,0.00011232,2]
[323596085,1714101048605,-500.0,0.00011232,2]
[323596086,1714101048614,-1711.45,0.00011232,2]
[323596087,1714101048623,-500.0,0.00011232,2]
[323596088,1714101048632,-500.0,0.00011232,2]
[323596089,1714101048641,-531.5,0.00011232,2]
[323596090,1714101048650,-500.0,0.00011232,2]
[323596091,1714101048659,-1184.98,0.00011232,2]
[323596092,1714101048668,-709.33,0.00011232,2]
[323596093,1714101048677,-500.0,0.00011232,2]
[323596094,1714101048686,-500.0,0.00011232,2]
[323596095,1714101048695,-500.0,0.00011232,2]
[323596096,1714101048705,-500.0,0.00011232,2]
[323596097,1714101048714,-500.0,0.00011232,2]
[323596098,1714101048723,-500.0,0.00011232,2]
[323596099,1714101048732,-671.29,0.00011232,2]
[323596100,1714101048741,-500.0,0.00011232,2]
[323596101,1714101048750,-500.0,0.00011232,2]
[323596102,1714101048759,-745.83,0.00011232,2]
[323596103,1714101048768,-500.0,0.00011232,2]
[323596104,1714101048777,-500.0,0.00011232,2]
[323596105,1714101048786,-500.0,0.00011232,2]
[323596106,1714101048795,-744.69,0.00011232,2]
[323596107,1714101048807,-500.0,0.00011232,2]
[323596108,1714101048816,-500.0,0.00011232,2]
[323596109,1714101048825,-500.0,0.00011232,2]
[323596110,1714101048834,-2591.1,0.00011232,2]
[323596111,1714101048844,-500.0,0.00011232,2]
[323596112,1714101048853,-704.85,0.00011232,2]
[323596113,1714101048862,-500.0,0.00011232,2]